[Event "Early-Titled-Tuesday-Blitz-May-14-2024"]
[Site "Chess.com"]
[Date "2024.05.14"]
[Round "5"]
[White "wonderfultime"]
[Black "DonkyDonkyDonkey"]
[Result "1-0"]
[WhiteElo "3071"]
[BlackElo "2908"]
[TimeControl "180+1"]
[EndTime "8:58:31 PDT"]
[Termination "wonderfultime won by resignation"]

1. d4 {[%clk 0:02:59.7]} 1... Nf6 {[%clk 0:03:00.3]} 2. Nf3 {[%clk 0:02:59.6]}
2... g6 {[%clk 0:03:00.7]} 3. c4 {[%clk 0:02:57.6]} 3... Bg7 {[%clk 0:03:00.7]}
4. g3 {[%clk 0:02:58.3]} 4... O-O {[%clk 0:03:00.6]} 5. Bg2 {[%clk 0:02:59.1]}
5... d5 {[%clk 0:03:01.1]} 6. O-O {[%clk 0:02:54.2]} 6... dxc4 {[%clk
0:02:50.6]} 7. Na3 {[%clk 0:02:54.3]} 7... c3 {[%clk 0:02:48.8]} 8. bxc3 {[%clk
0:02:55.2]} 8... c5 {[%clk 0:02:49.2]} 9. Nc4 {[%clk 0:02:55.9]} 9... Nc6 {[%clk
0:02:45.5]} 10. Nfe5 {[%clk 0:02:52.1]} 10... Nxe5 {[%clk 0:02:42.6]} 11. Nxe5
{[%clk 0:02:51.2]} 11... Nd5 {[%clk 0:02:34.9]} 12. Bb2 {[%clk 0:02:26.7]} 12...
cxd4 {[%clk 0:02:24.1]} 13. cxd4 {[%clk 0:02:25.7]} 13... Be6 {[%clk 0:02:20.9]}
14. Nd3 {[%clk 0:02:21.4]} 14... Rc8 {[%clk 0:02:17.3]} 15. e3 {[%clk
0:02:14.7]} 15... b6 {[%clk 0:02:12.3]} 16. Qa4 {[%clk 0:02:04.4]} 16... Bd7
{[%clk 0:01:46.2]} 17. Qxa7 {[%clk 0:01:32.7]} 17... Bb5 {[%clk 0:01:38.5]} 18.
Qa3 {[%clk 0:01:25.8]} 18... Bc4 {[%clk 0:01:38.8]} 19. Rfc1 {[%clk 0:01:18.2]}
19... Ra8 {[%clk 0:01:33.1]} 20. Rxc4 {[%clk 0:01:18.3]} 20... Rxa3 {[%clk
0:01:32.7]} 21. Bxa3 {[%clk 0:01:19.2]} 21... Qd7 {[%clk 0:01:30.4]} 22. Rac1
{[%clk 0:01:18]} 22... h6 {[%clk 0:01:11.2]} 23. Nf4 {[%clk 0:01:10.5]} 23...
Nxf4 {[%clk 0:01:09.3]} 24. gxf4 {[%clk 0:01:11.4]} 24... Bf6 {[%clk 0:01:07.7]}
25. Bb4 {[%clk 0:01:11.9]} 25... Qb5 {[%clk 0:01:03.6]} 26. a3 {[%clk
0:01:10.7]} 26... g5 {[%clk 0:01:00.3]} 27. d5 {[%clk 0:00:55.6]} 27... Rd8
{[%clk 0:00:56.9]} 28. fxg5 {[%clk 0:00:51.4]} 28... hxg5 {[%clk 0:00:57.8]} 29.
h3 {[%clk 0:00:49.5]} 29... Kg7 {[%clk 0:00:52.4]} 30. Rg4 {[%clk 0:00:48.8]}
30... Rxd5 {[%clk 0:00:45.8]} 31. Bxd5 {[%clk 0:00:46.9]} 31... Qxd5 {[%clk
0:00:46.7]} 32. h4 {[%clk 0:00:41.8]} 32... Qf5 {[%clk 0:00:45.6]} 33. Rcc4
{[%clk 0:00:39.6]} 33... b5 {[%clk 0:00:43.6]} 34. Rcf4 {[%clk 0:00:36.8]} 34...
Qb1+ {[%clk 0:00:43.1]} 35. Kg2 {[%clk 0:00:36.9]} 35... Qc2 {[%clk 0:00:22.5]}
36. Rf3 {[%clk 0:00:31.6]} 36... Kg6 {[%clk 0:00:20.7]} 37. hxg5 {[%clk
0:00:30.9]} 37... Bxg5 {[%clk 0:00:20.1]} 38. Bxe7 {[%clk 0:00:30.6]} 38... f5
{[%clk 0:00:14.1]} 39. Rxg5+ {[%clk 0:00:30.4]} 39... Kf7 {[%clk 0:00:14.2]} 40.
Bb4 {[%clk 0:00:25.7]} 40... Ke6 {[%clk 0:00:14.6]} 41. Rgxf5 {[%clk 0:00:25.7]}
41... Qe4 {[%clk 0:00:14.8]} 42. Rf4 {[%clk 0:00:25]} 42... Qg6+ {[%clk
0:00:15.6]} 43. Rg3 {[%clk 0:00:25.4]} 43... Qc2 {[%clk 0:00:16.4]} 44. e4
{[%clk 0:00:23.7]} 44... Qb1 {[%clk 0:00:16.1]} 45. Bc3 {[%clk 0:00:20]} 45...
Qc2 {[%clk 0:00:15.9]} 46. Rf6+ {[%clk 0:00:20.1]} 46... Ke7 {[%clk 0:00:16.6]}
47. Rg7+ {[%clk 0:00:20.3]} 47... Ke8 {[%clk 0:00:17.3]} 48. Re6+ {[%clk
0:00:14.8]} 48... Kf8 {[%clk 0:00:16.2]} 49. Rg3 {[%clk 0:00:15.2]} 49... Kf7
{[%clk 0:00:15.7]} 50. Rf6+ {[%clk 0:00:15.7]} 50... Ke7 {[%clk 0:00:16.3]} 51.
Rf4 {[%clk 0:00:10.2]} 51... Ke6 {[%clk 0:00:15.8]} 52. Bd4 {[%clk 0:00:10]}
52... Qc4 {[%clk 0:00:13.8]} 53. Rf6+ {[%clk 0:00:08.8]} 53... Ke7 {[%clk
0:00:14.2]} 54. Rg7+ {[%clk 0:00:09.5]} 54... Ke8 {[%clk 0:00:14.7]} 55. Rh6
{[%clk 0:00:07]} 1-0

[Event "Early-Titled-Tuesday-Blitz-May-14-2024"]
[Site "Chess.com"]
[Date "2024.05.14"]
[Round "5"]
[White "TitarovVasiliYouTube"]
[Black "FXDon77"]
[Result "0-1"]
[WhiteElo "2627"]
[BlackElo "2877"]
[TimeControl "180+1"]
[EndTime "8:58:32 PDT"]
[Termination "FXDon77 won on time"]

1. Nf3 {[%clk 0:02:50.8]} 1... d5 {[%clk 0:01:08.7]} 2. g3 {[%clk 0:02:49.2]}
2... Nd7 {[%clk 0:01:08]} 3. d4 {[%clk 0:02:49.2]} 3... Ngf6 {[%clk 0:01:05.5]}
4. Bg2 {[%clk 0:02:49.6]} 4... Nb6 {[%clk 0:01:05.3]} 5. O-O {[%clk 0:02:50.5]}
5... Bf5 {[%clk 0:01:05.8]} 6. a4 {[%clk 0:02:48.1]} 6... a5 {[%clk 0:01:05.3]}
7. b3 {[%clk 0:02:42.9]} 7... h6 {[%clk 0:01:03.9]} 8. Ne5 {[%clk 0:02:33.1]}
8... e6 {[%clk 0:01:04.1]} 9. c4 {[%clk 0:02:31.6]} 9... c6 {[%clk 0:01:03.8]}
10. Nc3 {[%clk 0:02:27.7]} 10... Bb4 {[%clk 0:01:03.4]} 11. Bb2 {[%clk
0:02:25.5]} 11... O-O {[%clk 0:01:02.7]} 12. c5 {[%clk 0:02:08.4]} 12... Bxc3
{[%clk 0:01:02.4]} 13. Bxc3 {[%clk 0:02:08.1]} 13... Nbd7 {[%clk 0:01:03.1]} 14.
Nxd7 {[%clk 0:02:07]} 14... Nxd7 {[%clk 0:01:01.6]} 15. Qd2 {[%clk 0:02:04.5]}
15... b6 {[%clk 0:01:01.2]} 16. cxb6 {[%clk 0:01:59.5]} 16... Qxb6 {[%clk
0:01:02.1]} 17. b4 {[%clk 0:01:59.3]} 17... axb4 {[%clk 0:01:01.9]} 18. Bxb4
{[%clk 0:01:59.8]} 18... c5 {[%clk 0:00:52.2]} 19. dxc5 {[%clk 0:01:58.7]} 19...
Nxc5 {[%clk 0:00:52.9]} 20. Qd4 {[%clk 0:01:35.1]} 20... Rfc8 {[%clk 0:00:51.9]}
21. a5 {[%clk 0:01:25.5]} 21... Qb5 {[%clk 0:00:48.7]} 22. Bxc5 {[%clk 0:01:17]}
22... Qxc5 {[%clk 0:00:38.9]} 23. Qd2 {[%clk 0:01:08.8]} 23... Qc2 {[%clk
0:00:32.8]} 24. Rfd1 {[%clk 0:01:08.4]} 24... Qxd2 {[%clk 0:00:29.4]} 25. Rxd2
{[%clk 0:01:09.3]} 25... Rxa5 {[%clk 0:00:27.4]} 26. Re1 {[%clk 0:01:05.6]}
26... Rac5 {[%clk 0:00:26.3]} 27. h3 {[%clk 0:00:54.5]} 27... Rc1 {[%clk
0:00:26.2]} 28. Rxc1 {[%clk 0:00:51.5]} 28... Rxc1+ {[%clk 0:00:26.8]} 29. Kh2
{[%clk 0:00:52.4]} 29... Rc2 {[%clk 0:00:26]} 30. Rxc2 {[%clk 0:00:48.9]} 30...
Bxc2 {[%clk 0:00:26.6]} 31. e3 {[%clk 0:00:47.5]} 31... Kf8 {[%clk 0:00:26]} 32.
g4 {[%clk 0:00:45.6]} 32... Ke7 {[%clk 0:00:24.8]} 33. Kg3 {[%clk 0:00:46.2]}
33... Kd6 {[%clk 0:00:25.2]} 34. f4 {[%clk 0:00:35.6]} 34... Bd3 {[%clk
0:00:20.5]} 35. h4 {[%clk 0:00:32.2]} 35... Kc5 {[%clk 0:00:20.4]} 36. g5 {[%clk
0:00:21.5]} 36... h5 {[%clk 0:00:20.3]} 37. Bf3 {[%clk 0:00:20.1]} 37... g6
{[%clk 0:00:20.3]} 38. Kf2 {[%clk 0:00:20.8]} 38... Kb4 {[%clk 0:00:18.9]} 39.
Bd1 {[%clk 0:00:18.4]} 39... Bb5 {[%clk 0:00:15.3]} 40. Bf3 {[%clk 0:00:13.2]}
40... Bc6 {[%clk 0:00:11.1]} 41. Ke2 {[%clk 0:00:12.7]} 41... Kc3 {[%clk
0:00:11.5]} 42. Kf2 {[%clk 0:00:07.2]} 42... Kd2 {[%clk 0:00:11]} 43. Be2 {[%clk
0:00:06.8]} 43... Ba4 {[%clk 0:00:09.7]} 44. Ba6 {[%clk 0:00:06.3]} 44... Kc3
{[%clk 0:00:05.2]} 45. Be2 {[%clk 0:00:04.3]} 45... d4 {[%clk 0:00:02.8]} 46.
exd4 {[%clk 0:00:03.9]} 46... Kxd4 {[%clk 0:00:03.6]} 0-1

[Event "Early-Titled-Tuesday-Blitz-May-14-2024"]
[Site "Chess.com"]
[Date "2024.05.14"]
[Round "5"]
[White "scarabee43"]
[Black "KononenkoD"]
[Result "1-0"]
[WhiteElo "2823"]
[BlackElo "2615"]
[TimeControl "180+1"]
[EndTime "8:58:33 PDT"]
[Termination "scarabee43 won on time"]

1. Nf3 {[%clk 0:03:00.9]} 1... c5 {[%clk 0:02:59.3]} 2. b3 {[%clk 0:02:59.8]}
2... f6 {[%clk 0:02:56.1]} 3. Bb2 {[%clk 0:02:59.1]} 3... e5 {[%clk 0:02:56.3]}
4. e3 {[%clk 0:02:54.4]} 4... d5 {[%clk 0:02:55.6]} 5. d4 {[%clk 0:02:53.4]}
5... cxd4 {[%clk 0:02:55.2]} 6. exd4 {[%clk 0:02:54.1]} 6... e4 {[%clk
0:02:55.5]} 7. Nfd2 {[%clk 0:02:54.9]} 7... Bb4 {[%clk 0:02:46.9]} 8. a3 {[%clk
0:02:54.3]} 8... Ba5 {[%clk 0:02:47.1]} 9. c4 {[%clk 0:02:53]} 9... Ne7 {[%clk
0:02:45]} 10. Be2 {[%clk 0:02:48.7]} 10... O-O {[%clk 0:02:41.6]} 11. O-O {[%clk
0:02:49.1]} 11... f5 {[%clk 0:02:41.3]} 12. Nc3 {[%clk 0:02:46.3]} 12... Be6
{[%clk 0:02:37]} 13. b4 {[%clk 0:02:44.8]} 13... Bc7 {[%clk 0:02:36.6]} 14. Nb5
{[%clk 0:02:41.6]} 14... Nbc6 {[%clk 0:02:20.7]} 15. Nxc7 {[%clk 0:02:40.9]}
15... Qxc7 {[%clk 0:02:21.6]} 16. Rc1 {[%clk 0:02:36.2]} 16... Qd7 {[%clk
0:02:06]} 17. Nb3 {[%clk 0:02:31.1]} 17... b6 {[%clk 0:02:03.7]} 18. b5 {[%clk
0:02:30.6]} 18... Nd8 {[%clk 0:01:55.7]} 19. c5 {[%clk 0:02:31.1]} 19... f4
{[%clk 0:01:54.7]} 20. c6 {[%clk 0:02:28.8]} 20... Qc7 {[%clk 0:01:51.2]} 21.
Rc3 {[%clk 0:01:59.1]} 21... Rf6 {[%clk 0:01:48.5]} 22. f3 {[%clk 0:01:55.3]}
22... Nf7 {[%clk 0:01:38.1]} 23. a4 {[%clk 0:01:54]} 23... Rd8 {[%clk 0:01:29]}
24. Na1 {[%clk 0:01:37.3]} 24... Nf5 {[%clk 0:01:27.4]} 25. Nc2 {[%clk
0:01:37.9]} 25... Rh6 {[%clk 0:01:15.4]} 26. Bc1 {[%clk 0:01:31.9]} 26... e3
{[%clk 0:01:12.1]} 27. Bd3 {[%clk 0:01:22.4]} 27... Qe7 {[%clk 0:01:08.9]} 28.
Qe1 {[%clk 0:01:08.5]} 28... Qg5 {[%clk 0:00:58.8]} 29. Bxf5 {[%clk 0:00:46.5]}
29... Bxf5 {[%clk 0:00:57.8]} 30. g4 {[%clk 0:00:47.1]} 30... fxg3 {[%clk
0:00:27.1]} 31. Bxe3 {[%clk 0:00:37.1]} 31... Qh5 {[%clk 0:00:22.2]} 32. Qxg3
{[%clk 0:00:28.1]} 32... Rg6 {[%clk 0:00:22.2]} 33. Nb4 {[%clk 0:00:24.2]} 33...
Rxg3+ {[%clk 0:00:21.3]} 34. hxg3 {[%clk 0:00:24.9]} 34... Qh3 {[%clk
0:00:20.8]} 35. Bf2 {[%clk 0:00:22.1]} 35... Be6 {[%clk 0:00:17.8]} 36. Re1
{[%clk 0:00:22.1]} 36... Rc8 {[%clk 0:00:17.3]} 37. Rce3 {[%clk 0:00:20.3]}
37... Nd8 {[%clk 0:00:16.1]} 38. Nd3 {[%clk 0:00:18.6]} 38... h5 {[%clk
0:00:15.5]} 39. Nf4 {[%clk 0:00:19.1]} 39... Qf5 {[%clk 0:00:14.9]} 40. Re5
{[%clk 0:00:19.2]} 40... Qf7 {[%clk 0:00:13.4]} 41. Nxe6 {[%clk 0:00:19.6]}
41... Nxe6 {[%clk 0:00:13.4]} 42. Rxe6 {[%clk 0:00:20.2]} 42... Rf8 {[%clk
0:00:11.2]} 43. f4 {[%clk 0:00:19.5]} 43... Qf5 {[%clk 0:00:09.6]} 44. R6e5
{[%clk 0:00:17.6]} 44... Qc2 {[%clk 0:00:09.7]} 45. Rxh5 {[%clk 0:00:16.8]}
45... Qxa4 {[%clk 0:00:09]} 46. Rxd5 {[%clk 0:00:17.2]} 46... Qb4 {[%clk
0:00:08.8]} 47. Rde5 {[%clk 0:00:17.3]} 47... Qc4 {[%clk 0:00:07.6]} 48. Be3
{[%clk 0:00:09.4]} 48... a5 {[%clk 0:00:06.2]} 49. Rc1 {[%clk 0:00:09.9]} 49...
Qf7 {[%clk 0:00:04.7]} 50. d5 {[%clk 0:00:09.6]} 50... a4 {[%clk 0:00:04.3]} 51.
d6 {[%clk 0:00:09.6]} 51... a3 {[%clk 0:00:04]} 52. Bd4 {[%clk 0:00:08.4]} 52...
Qb3 {[%clk 0:00:02.3]} 53. Rg5 {[%clk 0:00:08.7]} 1-0

[Event "Early-Titled-Tuesday-Blitz-May-14-2024"]
[Site "Chess.com"]
[Date "2024.05.14"]
[Round "5"]
[White "youngdinousaur"]
[Black "yaguigor"]
[Result "0-1"]
[WhiteElo "2385"]
[BlackElo "2582"]
[TimeControl "180+1"]
[EndTime "8:58:37 PDT"]
[Termination "yaguigor won by resignation"]

1. d4 {[%clk 0:03:00.9]} 1... d5 {[%clk 0:02:58.4]} 2. Bf4 {[%clk 0:02:59.7]}
2... Nf6 {[%clk 0:02:57.7]} 3. e3 {[%clk 0:03:00.3]} 3... c5 {[%clk 0:02:54.8]}
4. c3 {[%clk 0:02:59.3]} 4... Nc6 {[%clk 0:02:53.4]} 5. Nf3 {[%clk 0:02:59.6]}
5... Qb6 {[%clk 0:02:47.1]} 6. Qc2 {[%clk 0:02:58.5]} 6... Bf5 {[%clk
0:02:44.6]} 7. dxc5 {[%clk 0:02:58.3]} 7... Bxc2 {[%clk 0:02:39.4]} 8. cxb6
{[%clk 0:02:59.2]} 8... axb6 {[%clk 0:02:39.7]} 9. Na3 {[%clk 0:02:59.1]} 9...
Rxa3 {[%clk 0:02:20.5]} 10. bxa3 {[%clk 0:03:00]} 10... e6 {[%clk 0:02:20.9]}
11. Bb5 {[%clk 0:02:53.2]} 11... Bxa3 {[%clk 0:02:19.1]} 12. Nd4 {[%clk
0:02:53]} 12... Bg6 {[%clk 0:02:13.4]} 13. Nxc6 {[%clk 0:02:26.4]} 13... bxc6
{[%clk 0:02:12.5]} 14. Bxc6+ {[%clk 0:02:27.3]} 14... Ke7 {[%clk 0:02:12.8]} 15.
Be5 {[%clk 0:02:18.1]} 15... Ne4 {[%clk 0:01:59.7]} 16. O-O {[%clk 0:02:04.2]}
16... f6 {[%clk 0:01:55.8]} 17. Bd4 {[%clk 0:02:01.4]} 17... Rc8 {[%clk
0:01:51.3]} 18. Bb5 {[%clk 0:01:51.1]} 18... Nxc3 {[%clk 0:01:49.5]} 19. Ba6
{[%clk 0:01:28.5]} 19... Rc7 {[%clk 0:01:28.4]} 20. Bxb6 {[%clk 0:01:18.2]}
20... Rc6 {[%clk 0:01:28.2]} 21. Bd4 {[%clk 0:01:18.7]} 21... Bb2 {[%clk
0:01:24.1]} 22. Bb5 {[%clk 0:00:30.4]} 22... Rc8 {[%clk 0:01:09.3]} 23. Bxc3
{[%clk 0:00:29.6]} 23... Rxc3 {[%clk 0:01:02]} 24. Rad1 {[%clk 0:00:24.7]} 24...
Ra3 {[%clk 0:01:00.8]} 25. Rd2 {[%clk 0:00:21]} 25... Bc3 {[%clk 0:00:52.8]} 26.
Re2 {[%clk 0:00:18.9]} 26... Kd6 {[%clk 0:00:51.7]} 27. Rc1 {[%clk 0:00:17.5]}
27... e5 {[%clk 0:00:49.1]} 28. f3 {[%clk 0:00:15.5]} 28... Bf7 {[%clk
0:00:44.9]} 29. Bd3 {[%clk 0:00:12.5]} 29... h6 {[%clk 0:00:41.2]} 30. Bb1
{[%clk 0:00:10.8]} 30... d4 {[%clk 0:00:39.9]} 31. exd4 {[%clk 0:00:09.9]} 31...
exd4 {[%clk 0:00:40.8]} 32. Rec2 {[%clk 0:00:09.1]} 32... g5 {[%clk 0:00:36.9]}
33. Rxc3 {[%clk 0:00:06.7]} 33... Rxc3 {[%clk 0:00:33.9]} 34. Rxc3 {[%clk
0:00:06.2]} 34... dxc3 {[%clk 0:00:34.8]} 35. Kf2 {[%clk 0:00:03.4]} 35... Bxa2
{[%clk 0:00:33.7]} 36. Bc2 {[%clk 0:00:02.7]} 36... Ke5 {[%clk 0:00:31.8]} 37.
Ke3 {[%clk 0:00:03.3]} 37... Bc4 {[%clk 0:00:30.8]} 38. g3 {[%clk 0:00:03.7]}
38... Kd5 {[%clk 0:00:30.4]} 39. f4 {[%clk 0:00:03.8]} 39... Kc5 {[%clk
0:00:29.7]} 40. h4 {[%clk 0:00:03.7]} 40... gxh4 {[%clk 0:00:28.6]} 41. gxh4
{[%clk 0:00:03.9]} 41... Bf1 {[%clk 0:00:27.9]} 42. Ke4 {[%clk 0:00:02.3]} 42...
Kc4 {[%clk 0:00:24.4]} 43. Ke3 {[%clk 0:00:02.9]} 43... Bh3 {[%clk 0:00:22.1]}
44. Ke4 {[%clk 0:00:02]} 44... Bd7 {[%clk 0:00:21]} 45. Ke3 {[%clk 0:00:02.5]}
45... f5 {[%clk 0:00:18.8]} 46. Ke2 {[%clk 0:00:02.4]} 46... Kd4 {[%clk
0:00:18]} 47. Kf3 {[%clk 0:00:02.6]} 47... Bc6+ {[%clk 0:00:17.4]} 48. Kg3
{[%clk 0:00:03]} 48... Be4 {[%clk 0:00:18]} 49. Bb3 {[%clk 0:00:02.2]} 49... c2
{[%clk 0:00:17.5]} 50. Bxc2 {[%clk 0:00:02.7]} 50... Bxc2 {[%clk 0:00:17.8]} 51.
h5 {[%clk 0:00:03.6]} 51... Ke3 {[%clk 0:00:17.4]} 52. Kh4 {[%clk 0:00:04.5]}
52... Kxf4 {[%clk 0:00:16.2]} 53. Kh3 {[%clk 0:00:05]} 53... Kg5 {[%clk
0:00:16.8]} 54. Kg3 {[%clk 0:00:05.1]} 54... Kxh5 {[%clk 0:00:17.7]} 55. Kh3
{[%clk 0:00:06]} 55... Kg5 {[%clk 0:00:18.1]} 56. Kg3 {[%clk 0:00:06.9]} 56...
f4+ {[%clk 0:00:19]} 57. Kf3 {[%clk 0:00:07.8]} 57... Bf5 {[%clk 0:00:17.9]} 0-1

[Event "Early-Titled-Tuesday-Blitz-May-14-2024"]
[Site "Chess.com"]
[Date "2024.05.14"]
[Round "5"]
[White "littlepinkyboy"]
[Black "Anton_Demchenko"]
[Result "0-1"]
[WhiteElo "2675"]
[BlackElo "2866"]
[TimeControl "180+1"]
[EndTime "8:58:38 PDT"]
[Termination "Anton_Demchenko won by resignation"]

1. e4 {[%clk 0:02:57.6]} 1... e5 {[%clk 0:02:57.8]} 2. Nf3 {[%clk 0:02:55.3]}
2... Nc6 {[%clk 0:02:56.6]} 3. Bb5 {[%clk 0:02:56]} 3... a6 {[%clk 0:02:54.5]}
4. Ba4 {[%clk 0:02:56.8]} 4... d6 {[%clk 0:02:53.5]} 5. O-O {[%clk 0:02:45.7]}
5... Nf6 {[%clk 0:02:52]} 6. d3 {[%clk 0:02:42.5]} 6... b5 {[%clk 0:02:50.2]} 7.
Bb3 {[%clk 0:02:42]} 7... Na5 {[%clk 0:02:51]} 8. h3 {[%clk 0:02:36.8]} 8... c5
{[%clk 0:02:49.4]} 9. Nc3 {[%clk 0:02:23.4]} 9... Be7 {[%clk 0:02:39.5]} 10. Bd5
{[%clk 0:01:48.3]} 10... Rb8 {[%clk 0:02:37.4]} 11. a3 {[%clk 0:01:44.8]} 11...
b4 {[%clk 0:02:27.2]} 12. axb4 {[%clk 0:01:44]} 12... cxb4 {[%clk 0:02:28.1]}
13. Ne2 {[%clk 0:01:41.9]} 13... Nxd5 {[%clk 0:02:27.7]} 14. exd5 {[%clk
0:01:42.8]} 14... O-O {[%clk 0:02:25.1]} 15. c4 {[%clk 0:01:36.3]} 15... bxc3
{[%clk 0:02:21.9]} 16. bxc3 {[%clk 0:01:35.9]} 16... Bd7 {[%clk 0:01:42.1]} 17.
Be3 {[%clk 0:01:22.4]} 17... f5 {[%clk 0:01:41.5]} 18. c4 {[%clk 0:01:14.4]}
18... f4 {[%clk 0:01:31.9]} 19. Bd2 {[%clk 0:01:10.4]} 19... Nb3 {[%clk
0:01:32.4]} 20. Rxa6 {[%clk 0:01:07.3]} 20... Nc5 {[%clk 0:01:25]} 21. Ra7
{[%clk 0:00:55.1]} 21... Qb6 {[%clk 0:01:20.6]} 22. Ra3 {[%clk 0:00:45.6]} 22...
Nb3 {[%clk 0:00:48.1]} 23. d4 {[%clk 0:00:35]} 23... e4 {[%clk 0:00:44.1]} 24.
Nh2 {[%clk 0:00:23.9]} 24... f3 {[%clk 0:00:44.9]} 25. Ng3 {[%clk 0:00:16.8]}
25... fxg2 {[%clk 0:00:29.6]} 26. Kxg2 {[%clk 0:00:17.4]} 26... Qxd4 {[%clk
0:00:21.7]} 27. Rxb3 {[%clk 0:00:15.5]} 27... Rxb3 {[%clk 0:00:21.3]} 28. Qxb3
{[%clk 0:00:16.4]} 28... Qxd2 {[%clk 0:00:21.8]} 29. Nxe4 {[%clk 0:00:11.8]}
29... Qf4 {[%clk 0:00:17.1]} 30. Ng3 {[%clk 0:00:05.2]} 30... Qh4 {[%clk
0:00:17.3]} 31. Ng4 {[%clk 0:00:04.8]} 31... h5 {[%clk 0:00:16.5]} 32. Nxh5
{[%clk 0:00:02.6]} 32... Qxh5 {[%clk 0:00:16.3]} 33. Qg3 {[%clk 0:00:03.3]}
33... Kh8 {[%clk 0:00:12.5]} 34. f4 {[%clk 0:00:01.6]} 34... Bf5 {[%clk
0:00:11.2]} 35. Qf3 {[%clk 0:00:01.6]} 35... Qg6 {[%clk 0:00:10.9]} 36. Re1
{[%clk 0:00:01.6]} 36... Bf6 {[%clk 0:00:11.3]} 37. Re2 {[%clk 0:00:02]} 37...
Bd4 {[%clk 0:00:11.4]} 38. Kh2 {[%clk 0:00:02.2]} 38... Bc5 {[%clk 0:00:11.6]}
39. Ne3 {[%clk 0:00:01.5]} 39... Be4 {[%clk 0:00:09.2]} 40. Qg3 {[%clk
0:00:02.1]} 40... Qxg3+ {[%clk 0:00:08.7]} 41. Kxg3 {[%clk 0:00:03]} 41... Bd3
{[%clk 0:00:08.1]} 42. Re1 {[%clk 0:00:01.9]} 42... Re8 {[%clk 0:00:08.5]} 43.
Ng2 {[%clk 0:00:01.6]} 43... Rxe1 {[%clk 0:00:08]} 44. Nxe1 {[%clk 0:00:02.5]}
44... Bxc4 {[%clk 0:00:08.9]} 45. Nf3 {[%clk 0:00:03.2]} 45... Bxd5 {[%clk
0:00:09.3]} 46. Ng5 {[%clk 0:00:01.6]} 46... Kg8 {[%clk 0:00:10]} 47. f5 {[%clk
0:00:02]} 47... Ba2 {[%clk 0:00:09.3]} 48. Kf4 {[%clk 0:00:02.1]} 48... Bd4
{[%clk 0:00:09.4]} 49. Ne4 {[%clk 0:00:01.6]} 49... Be5+ {[%clk 0:00:09.9]} 50.
Kg5 {[%clk 0:00:01.5]} 50... Bb1 {[%clk 0:00:10.8]} 51. Kg4 {[%clk 0:00:02.4]}
51... Bxe4 {[%clk 0:00:10.4]} 0-1

[Event "Early-Titled-Tuesday-Blitz-May-14-2024"]
[Site "Chess.com"]
[Date "2024.05.14"]
[Round "5"]
[White "AradNazari"]
[Black "JiaHaoxiang"]
[Result "1-0"]
[WhiteElo "2812"]
[BlackElo "2607"]
[TimeControl "180+1"]
[EndTime "8:58:39 PDT"]
[Termination "AradNazari won by checkmate"]

1. e4 {[%clk 0:02:58.2]} 1... c5 {[%clk 0:02:58.5]} 2. Nf3 {[%clk 0:02:58.3]}
2... d6 {[%clk 0:02:57.4]} 3. Bb5+ {[%clk 0:02:58.6]} 3... Bd7 {[%clk
0:02:57.4]} 4. Bxd7+ {[%clk 0:02:58.9]} 4... Qxd7 {[%clk 0:02:57.9]} 5. O-O
{[%clk 0:02:59.1]} 5... Nf6 {[%clk 0:02:55.5]} 6. Re1 {[%clk 0:02:58.7]} 6...
Nc6 {[%clk 0:02:55.1]} 7. c3 {[%clk 0:02:59.2]} 7... e6 {[%clk 0:02:53.7]} 8. d4
{[%clk 0:02:59.7]} 8... cxd4 {[%clk 0:02:53.3]} 9. cxd4 {[%clk 0:03:00.6]} 9...
d5 {[%clk 0:02:52.8]} 10. e5 {[%clk 0:03:01.2]} 10... Ne4 {[%clk 0:02:51.7]} 11.
a3 {[%clk 0:03:01.9]} 11... Be7 {[%clk 0:02:33.6]} 12. Qd3 {[%clk 0:03:01.8]}
12... O-O {[%clk 0:02:31.6]} 13. Nbd2 {[%clk 0:03:02.3]} 13... Nxd2 {[%clk
0:02:31]} 14. Bxd2 {[%clk 0:03:03.2]} 14... a6 {[%clk 0:02:15.2]} 15. h4 {[%clk
0:03:01.4]} 15... h6 {[%clk 0:02:11.8]} 16. Re3 {[%clk 0:02:54.7]} 16... f5
{[%clk 0:02:07.6]} 17. exf6 {[%clk 0:02:53.6]} 17... Bxf6 {[%clk 0:02:06.4]} 18.
Rae1 {[%clk 0:02:53.2]} 18... Rae8 {[%clk 0:01:56.8]} 19. g3 {[%clk 0:02:42.6]}
19... Qf7 {[%clk 0:01:34.6]} 20. R1e2 {[%clk 0:02:37.1]} 20... Bd8 {[%clk
0:01:07.6]} 21. b4 {[%clk 0:02:32.4]} 21... Bc7 {[%clk 0:01:07.2]} 22. a4 {[%clk
0:02:18.8]} 22... Qh5 {[%clk 0:00:53.2]} 23. Kg2 {[%clk 0:02:05]} 23... Rf6
{[%clk 0:00:38.9]} 24. b5 {[%clk 0:02:03.1]} 24... axb5 {[%clk 0:00:38.7]} 25.
axb5 {[%clk 0:02:03.7]} 25... Nd8 {[%clk 0:00:38.9]} 26. Bb4 {[%clk 0:01:41.7]}
26... b6 {[%clk 0:00:34.4]} 27. Qc2 {[%clk 0:01:11.1]} 27... Rf7 {[%clk
0:00:26.8]} 28. Ne1 {[%clk 0:00:53.7]} 28... Qg4 {[%clk 0:00:24.8]} 29. Qd3
{[%clk 0:00:37.6]} 29... Rf6 {[%clk 0:00:21.2]} 30. f3 {[%clk 0:00:37.4]} 30...
Qh5 {[%clk 0:00:20.7]} 31. Qc2 {[%clk 0:00:34.7]} 31... Rf7 {[%clk 0:00:19.9]}
32. Nd3 {[%clk 0:00:32.1]} 32... Qg6 {[%clk 0:00:19]} 33. f4 {[%clk 0:00:21.7]}
33... Bb8 {[%clk 0:00:13.3]} 34. Qc8 {[%clk 0:00:18.7]} 34... Bc7 {[%clk
0:00:11.2]} 35. Ne5 {[%clk 0:00:16.1]} 35... Bxe5 {[%clk 0:00:10.2]} 36. Rxe5
{[%clk 0:00:16.1]} 36... Qd3 {[%clk 0:00:06.5]} 37. Rxe6 {[%clk 0:00:07.3]}
37... Rxe6 {[%clk 0:00:05]} 38. Rxe6 {[%clk 0:00:07.3]} 38... Qxb5 {[%clk
0:00:02]} 39. Qxd8+ {[%clk 0:00:06.8]} 39... Kh7 {[%clk 0:00:02.2]} 40. Re8
{[%clk 0:00:05.9]} 40... Qxb4 {[%clk 0:00:02.4]} 41. h5 {[%clk 0:00:06.5]} 41...
Qd2+ {[%clk 0:00:02]} 42. Kh3 {[%clk 0:00:07.2]} 42... g5 {[%clk 0:00:01.6]} 43.
Rh8+ {[%clk 0:00:06.4]} 43... Kg7 {[%clk 0:00:02]} 44. Qg8+ {[%clk 0:00:05.8]}
44... Kf6 {[%clk 0:00:02.3]} 45. Rxh6+ {[%clk 0:00:06.4]} 45... Ke7 {[%clk
0:00:02.4]} 46. Qxg5+ {[%clk 0:00:07.1]} 46... Kd7 {[%clk 0:00:02.6]} 47. Qxd5+
{[%clk 0:00:07.8]} 47... Ke8 {[%clk 0:00:02.7]} 48. Qe6+ {[%clk 0:00:07.9]}
48... Kf8 {[%clk 0:00:03.3]} 49. Rh8+ {[%clk 0:00:06.9]} 49... Kg7 {[%clk
0:00:03.7]} 50. Qh6# {[%clk 0:00:07.6]} 1-0